[Event "Late-Titled-Tuesday-Blitz-June-18-2024"]
[Site "Chess.com"]
[Date "2024.06.18"]
[Round "7"]
[White "Chigorinetz"]
[Black "Mikhal867"]
[Result "1-0"]
[WhiteElo "2618"]
[BlackElo "2447"]
[TimeControl "180+1"]
[EndTime "15:19:27 PDT"]
[Termination "Chigorinetz won by resignation"]

1. e4 {[%clk 0:03:00.9]} 1... g6 {[%clk 0:02:55.4]} 2. Nc3 {[%clk 0:03:00]} 2...
Bg7 {[%clk 0:02:54.8]} 3. f4 {[%clk 0:03:00.6]} 3... c5 {[%clk 0:02:54.3]} 4.
Nf3 {[%clk 0:03:00.6]} 4... Nc6 {[%clk 0:02:54.2]} 5. Bc4 {[%clk 0:03:00.1]}
5... e6 {[%clk 0:02:54.1]} 6. O-O {[%clk 0:03:00.1]} 6... Nge7 {[%clk
0:02:53.2]} 7. f5 {[%clk 0:02:59]} 7... gxf5 {[%clk 0:02:52]} 8. d3 {[%clk
0:02:57.7]} 8... h6 {[%clk 0:02:46.3]} 9. Qe1 {[%clk 0:02:57]} 9... Nd4 {[%clk
0:02:42.1]} 10. Nxd4 {[%clk 0:02:50.7]} 10... Bxd4+ {[%clk 0:02:39.7]} 11. Kh1
{[%clk 0:02:50.3]} 11... fxe4 {[%clk 0:02:30.1]} 12. Nb5 {[%clk 0:02:21.7]}
12... d5 {[%clk 0:02:23]} 13. Nxd4 {[%clk 0:02:21.2]} 13... dxc4 {[%clk
0:02:06]} 14. Nb5 {[%clk 0:02:15.3]} 14... a6 {[%clk 0:01:50.7]} 15. Nc3 {[%clk
0:02:14.8]} 15... exd3 {[%clk 0:01:49.6]} 16. Qe5 {[%clk 0:02:10.8]} 16... Ng6
{[%clk 0:01:46.6]} 17. Qxc5 {[%clk 0:02:08.7]} 17... b5 {[%clk 0:01:33.3]} 18.
Ne4 {[%clk 0:02:05]} 18... f5 {[%clk 0:01:04.8]} 19. Nd6+ {[%clk 0:01:55.9]}
19... Kd7 {[%clk 0:01:04.9]} 20. Nf7 {[%clk 0:01:42.4]} 20... Qf8 {[%clk
0:00:42.2]} 21. Qd4+ {[%clk 0:01:33]} 21... Kc6 {[%clk 0:00:41.7]} 22. Nxh8
{[%clk 0:01:09.4]} 22... Qxh8 {[%clk 0:00:41.7]} 23. Qf2 {[%clk 0:01:03.3]}
23... Bb7 {[%clk 0:00:37.9]} 24. cxd3 {[%clk 0:01:02.2]} 24... Ne5 {[%clk
0:00:34.2]} 25. dxc4 {[%clk 0:00:59.2]} 25... bxc4 {[%clk 0:00:32.2]} 26. Bf4
{[%clk 0:00:52]} 26... Nd3 {[%clk 0:00:30.2]} 27. Qf3+ {[%clk 0:00:51.9]} 27...
Kb6 {[%clk 0:00:30.5]} 28. Be3+ {[%clk 0:00:52.1]} 28... Kc7 {[%clk 0:00:30.3]}
29. Qg3+ {[%clk 0:00:51.9]} 29... e5 {[%clk 0:00:23.6]} 30. Qh4 {[%clk
0:00:27.9]} 30... Rg8 {[%clk 0:00:21.1]} 31. Qxc4+ {[%clk 0:00:26.6]} 31... Kb8
{[%clk 0:00:20.9]} 32. Rg1 {[%clk 0:00:26.7]} 32... e4 {[%clk 0:00:19.4]} 33.
Raf1 {[%clk 0:00:18.8]} 33... Rf8 {[%clk 0:00:17.5]} 34. b4 {[%clk 0:00:18.6]}
34... Qg7 {[%clk 0:00:16.7]} 35. b5 {[%clk 0:00:18.3]} 35... Qc7 {[%clk
0:00:15.1]} 36. Qd4 {[%clk 0:00:17.2]} 36... axb5 {[%clk 0:00:14.5]} 37. Rc1
{[%clk 0:00:16]} 37... Qa5 {[%clk 0:00:11]} 38. Qd6+ {[%clk 0:00:15.5]} 38...
Ka8 {[%clk 0:00:09.8]} 39. Qxf8+ {[%clk 0:00:15.5]} 1-0

[Event "Late-Titled-Tuesday-Blitz-June-18-2024"]
[Site "Chess.com"]
[Date "2024.06.18"]
[Round "7"]
[White "StoreySniper"]
[Black "CombativeWombat"]
[Result "1-0"]
[WhiteElo "2412"]
[BlackElo "2298"]
[TimeControl "180+1"]
[EndTime "15:19:33 PDT"]
[Termination "StoreySniper won by checkmate"]

1. c4 {[%clk 0:02:45.4]} 1... e6 {[%clk 0:02:59.6]} 2. g3 {[%clk 0:02:45.2]}
2... d5 {[%clk 0:03:00.2]} 3. Bg2 {[%clk 0:02:45.8]} 3... dxc4 {[%clk
0:03:00.7]} 4. Qa4+ {[%clk 0:02:44.7]} 4... Nd7 {[%clk 0:03:00.8]} 5. Qxc4
{[%clk 0:02:44.7]} 5... a6 {[%clk 0:03:01.4]} 6. Qc2 {[%clk 0:02:43.6]} 6... c5
{[%clk 0:02:47.2]} 7. b3 {[%clk 0:02:42.3]} 7... Ngf6 {[%clk 0:02:43.7]} 8. Bb2
{[%clk 0:02:42.4]} 8... Bd6 {[%clk 0:02:44.1]} 9. Nc3 {[%clk 0:02:35.7]} 9...
O-O {[%clk 0:02:41.1]} 10. d3 {[%clk 0:02:22.3]} 10... Re8 {[%clk 0:02:30.3]}
11. Rc1 {[%clk 0:02:20.4]} 11... e5 {[%clk 0:02:30.4]} 12. e3 {[%clk 0:02:07.1]}
12... Nf8 {[%clk 0:02:20.7]} 13. Nge2 {[%clk 0:01:59.2]} 13... Rb8 {[%clk
0:02:14.4]} 14. O-O {[%clk 0:01:54.9]} 14... b5 {[%clk 0:02:13.8]} 15. Rfd1
{[%clk 0:01:52.4]} 15... Qb6 {[%clk 0:02:12.5]} 16. Nd5 {[%clk 0:01:46.3]} 16...
Nxd5 {[%clk 0:02:11.2]} 17. Bxd5 {[%clk 0:01:47.2]} 17... Bf5 {[%clk 0:01:50]}
18. Nc3 {[%clk 0:01:33.9]} 18... Rbd8 {[%clk 0:01:47.9]} 19. Be4 {[%clk
0:01:31.8]} 19... Bg4 {[%clk 0:01:32.4]} 20. f3 {[%clk 0:01:27.7]} 20... Bc8
{[%clk 0:01:26.5]} 21. Nd5 {[%clk 0:01:27.1]} 21... Qa7 {[%clk 0:01:20.7]} 22.
Nc3 {[%clk 0:01:12.6]} 22... f5 {[%clk 0:01:18.2]} 23. Bd5+ {[%clk 0:01:11.8]}
23... Kh8 {[%clk 0:01:18.5]} 24. e4 {[%clk 0:01:08.1]} 24... f4 {[%clk
0:01:16.3]} 25. gxf4 {[%clk 0:01:05.8]} 25... Ng6 {[%clk 0:01:15.8]} 26. Ne2
{[%clk 0:01:04.9]} 26... Rf8 {[%clk 0:01:05.4]} 27. f5 {[%clk 0:01:02.7]} 27...
Nh4 {[%clk 0:01:05.3]} 28. Kh1 {[%clk 0:00:50.9]} 28... Nxf3 {[%clk 0:00:55.9]}
29. Rf1 {[%clk 0:00:47.4]} 29... Nd4 {[%clk 0:00:43.3]} 30. Bxd4 {[%clk
0:00:44.4]} 30... exd4 {[%clk 0:00:44.2]} 31. Qd2 {[%clk 0:00:36.9]} 31... Qe7
{[%clk 0:00:44]} 32. Rg1 {[%clk 0:00:18.8]} 32... Qe5 {[%clk 0:00:37]} 33. Rg2
{[%clk 0:00:17.8]} 33... Bxf5 {[%clk 0:00:36.6]} 34. Ng3 {[%clk 0:00:11.3]}
34... Bg6 {[%clk 0:00:35.5]} 35. Rcg1 {[%clk 0:00:08.5]} 35... Rf3 {[%clk
0:00:32.7]} 36. Qe2 {[%clk 0:00:05.9]} 36... Rdf8 {[%clk 0:00:32.6]} 37. Nf5
{[%clk 0:00:06.2]} 37... Rh3 {[%clk 0:00:13.1]} 38. Nxd6 {[%clk 0:00:06.4]}
38... Qxd6 {[%clk 0:00:13.6]} 39. Qg4 {[%clk 0:00:06.3]} 39... Rhf3 {[%clk
0:00:13.1]} 40. Rg3 {[%clk 0:00:05.3]} 40... Rf2 {[%clk 0:00:13]} 41. Qxg6
{[%clk 0:00:03.2]} 41... hxg6 {[%clk 0:00:12.9]} 42. Rh3# {[%clk 0:00:03.4]} 1-0

[Event "Late-Titled-Tuesday-Blitz-June-18-2024"]
[Site "Chess.com"]
[Date "2024.06.18"]
[Round "7"]
[White "GoltsevDmitry2000"]
[Black "Roachelley"]
[Result "1-0"]
[WhiteElo "2721"]
[BlackElo "2558"]
[TimeControl "180+1"]
[EndTime "15:19:35 PDT"]
[Termination "GoltsevDmitry2000 won by resignation"]

1. e4 {[%clk 0:02:59.5]} 1... c5 {[%clk 0:02:59.2]} 2. Nf3 {[%clk 0:02:59.6]}
2... d6 {[%clk 0:02:59]} 3. d4 {[%clk 0:03:00.1]} 3... cxd4 {[%clk 0:02:59.9]}
4. Nxd4 {[%clk 0:02:59.9]} 4... Nf6 {[%clk 0:03:00.1]} 5. Nc3 {[%clk 0:03:00.3]}
5... Nc6 {[%clk 0:03:00.5]} 6. Be2 {[%clk 0:02:59.7]} 6... g6 {[%clk 0:02:59.2]}
7. O-O {[%clk 0:02:59.3]} 7... Bg7 {[%clk 0:02:59.4]} 8. Be3 {[%clk 0:02:59.6]}
8... O-O {[%clk 0:02:59.3]} 9. Nb3 {[%clk 0:02:58.4]} 9... Be6 {[%clk
0:02:54.8]} 10. f4 {[%clk 0:02:58.7]} 10... Rc8 {[%clk 0:02:47.4]} 11. Bf3
{[%clk 0:02:56.8]} 11... a5 {[%clk 0:02:12.2]} 12. Qe2 {[%clk 0:02:48.6]} 12...
Nb4 {[%clk 0:01:55.1]} 13. Rfd1 {[%clk 0:02:46.5]} 13... Qc7 {[%clk 0:01:44.5]}
14. a3 {[%clk 0:02:37.8]} 14... Na6 {[%clk 0:01:39.4]} 15. Qb5 {[%clk
0:02:24.5]} 15... Ng4 {[%clk 0:01:08.7]} 16. Bb6 {[%clk 0:02:16.6]} 16... Qc6
{[%clk 0:01:00.4]} 17. Qxa5 {[%clk 0:01:51.9]} 17... Bxc3 {[%clk 0:00:47.9]} 18.
bxc3 {[%clk 0:01:49.2]} 18... Qxc3 {[%clk 0:00:45.2]} 19. f5 {[%clk 0:01:44.7]}
19... Bxb3 {[%clk 0:00:34.6]} 20. cxb3 {[%clk 0:01:31.2]} 20... Qxa5 {[%clk
0:00:34.5]} 21. Bxa5 {[%clk 0:01:32.1]} 21... Ne5 {[%clk 0:00:34.3]} 22. Be2
{[%clk 0:01:29.3]} 22... Nc5 {[%clk 0:00:34]} 23. Bb6 {[%clk 0:01:10]} 23...
Nxe4 {[%clk 0:00:32.3]} 24. fxg6 {[%clk 0:01:05.4]} 24... hxg6 {[%clk
0:00:31.6]} 25. Re1 {[%clk 0:01:02]} 25... Nc3 {[%clk 0:00:25.7]} 26. Bf1 {[%clk
0:00:59.1]} 26... Nd5 {[%clk 0:00:21.6]} 27. Bd4 {[%clk 0:00:58.2]} 27... Nc6
{[%clk 0:00:21.4]} 28. Bb2 {[%clk 0:00:58.2]} 28... e6 {[%clk 0:00:21.4]} 29.
Rad1 {[%clk 0:00:55.5]} 29... Na5 {[%clk 0:00:20.1]} 30. b4 {[%clk 0:00:53]}
30... Nc4 {[%clk 0:00:20.1]} 31. Bd4 {[%clk 0:00:53]} 31... Nxa3 {[%clk
0:00:19.8]} 32. Re4 {[%clk 0:00:50.1]} 32... Nc3 {[%clk 0:00:17.4]} 33. Rh4
{[%clk 0:00:45.8]} 33... e5 {[%clk 0:00:16.1]} 34. Bxc3 {[%clk 0:00:43.7]} 34...
Rxc3 {[%clk 0:00:17]} 35. Rxd6 {[%clk 0:00:43]} 35... Rc1 {[%clk 0:00:17.5]} 36.
Kf2 {[%clk 0:00:40.5]} 36... Rfc8 {[%clk 0:00:17.9]} 37. Bd3 {[%clk 0:00:37]}
37... Kg7 {[%clk 0:00:16.8]} 38. Rd7 {[%clk 0:00:36]} 38... b6 {[%clk
0:00:16.5]} 39. Rg4 {[%clk 0:00:35.8]} 39... Kf8 {[%clk 0:00:15.3]} 40. Rg3
{[%clk 0:00:31.2]} 40... Nc4 {[%clk 0:00:14.8]} 41. Rf3 {[%clk 0:00:27.6]} 41...
f5 {[%clk 0:00:14.3]} 42. Rh3 {[%clk 0:00:26.5]} 42... Kg8 {[%clk 0:00:14.3]}
43. Rh6 {[%clk 0:00:24.9]} 43... Rc6 {[%clk 0:00:11.5]} 44. b5 {[%clk
0:00:24.8]} 44... Rf6 {[%clk 0:00:11.1]} 45. Rc7 {[%clk 0:00:24.4]} 1-0

[Event "Late-Titled-Tuesday-Blitz-June-18-2024"]
[Site "Chess.com"]
[Date "2024.06.18"]
[Round "7"]
[White "Igor_Lysyj"]
[Black "DanielNaroditsky"]
[Result "0-1"]
[WhiteElo "2847"]
[BlackElo "3134"]
[TimeControl "180+1"]
[EndTime "15:19:39 PDT"]
[Termination "DanielNaroditsky won by checkmate"]

1. d4 {[%clk 0:03:00.1]} 1... Nf6 {[%clk 0:03:00]} 2. Nf3 {[%clk 0:03:00]} 2...
g6 {[%clk 0:02:59.5]} 3. e3 {[%clk 0:03:00.2]} 3... Bg7 {[%clk 0:03:00]} 4. Be2
{[%clk 0:03:00.8]} 4... O-O {[%clk 0:03:00.9]} 5. O-O {[%clk 0:03:01.2]} 5... d6
{[%clk 0:03:01.8]} 6. c4 {[%clk 0:02:58.8]} 6... Nbd7 {[%clk 0:03:01.5]} 7. Nc3
{[%clk 0:02:58.5]} 7... e5 {[%clk 0:03:02.2]} 8. Qc2 {[%clk 0:02:57.8]} 8... Re8
{[%clk 0:03:01.7]} 9. b3 {[%clk 0:02:56.7]} 9... e4 {[%clk 0:02:55.9]} 10. Nd2
{[%clk 0:02:56.8]} 10... Qe7 {[%clk 0:02:56.2]} 11. Bb2 {[%clk 0:02:55.3]} 11...
Nf8 {[%clk 0:02:55.5]} 12. Rfc1 {[%clk 0:02:53.5]} 12... c6 {[%clk 0:02:51.7]}
13. b4 {[%clk 0:02:51.1]} 13... Bf5 {[%clk 0:02:51.4]} 14. Bf1 {[%clk
0:02:46.2]} 14... h5 {[%clk 0:02:49.1]} 15. a4 {[%clk 0:02:41]} 15... Ne6 {[%clk
0:02:47]} 16. Qd1 {[%clk 0:02:37.4]} 16... Nxd4 {[%clk 0:02:26]} 17. exd4 {[%clk
0:02:30.5]} 17... e3 {[%clk 0:02:26.9]} 18. Nf3 {[%clk 0:02:25.8]} 18... Ng4
{[%clk 0:02:15.2]} 19. d5 {[%clk 0:01:02.4]} 19... Nxf2 {[%clk 0:01:49.4]} 20.
Qe1 {[%clk 0:00:57.4]} 20... Bg4 {[%clk 0:01:49.7]} 21. Be2 {[%clk 0:00:54.1]}
21... Bxf3 {[%clk 0:01:40]} 22. Bxf3 {[%clk 0:00:53.3]} 22... Nd3 {[%clk
0:01:40.3]} 23. Qe2 {[%clk 0:00:53]} 23... Nf4 {[%clk 0:01:21.7]} 24. Qc2 {[%clk
0:00:47.1]} 24... e2 {[%clk 0:01:22]} 25. Qd2 {[%clk 0:00:27.2]} 25... Qe3+
{[%clk 0:01:07.9]} 26. Qxe3 {[%clk 0:00:25.2]} 26... Rxe3 {[%clk 0:01:08.8]} 27.
dxc6 {[%clk 0:00:19.6]} 27... Rae8 {[%clk 0:01:05.3]} 28. cxb7 {[%clk
0:00:17.8]} 28... e1=Q+ {[%clk 0:00:12.9]} 29. Rxe1 {[%clk 0:00:17.5]} 29...
Rxe1+ {[%clk 0:00:13.8]} 30. Rxe1 {[%clk 0:00:16.6]} 30... Rxe1+ {[%clk
0:00:14.7]} 31. Kf2 {[%clk 0:00:16.8]} 31... Nd3+ {[%clk 0:00:15.6]} 32. Kg3
{[%clk 0:00:17.4]} 32... Be5+ {[%clk 0:00:16.3]} 33. Kh4 {[%clk 0:00:16.1]}
33... Bf6+ {[%clk 0:00:16.8]} 34. Kg3 {[%clk 0:00:16]} 34... h4+ {[%clk
0:00:13.9]} 35. Kg4 {[%clk 0:00:15.3]} 35... Nf2+ {[%clk 0:00:12.5]} 36. Kf4
{[%clk 0:00:14.2]} 36... Nd3+ {[%clk 0:00:06]} 37. Kg4 {[%clk 0:00:14.4]} 37...
Kg7 {[%clk 0:00:03.2]} 38. b8=Q {[%clk 0:00:10.6]} 38... Nf2+ {[%clk 0:00:02.8]}
39. Kf4 {[%clk 0:00:10.3]} 39... g5+ {[%clk 0:00:03.1]} 40. Kf5 {[%clk
0:00:07.2]} 40... Re5# {[%clk 0:00:04]} 0-1

[Event "Late-Titled-Tuesday-Blitz-June-18-2024"]
[Site "Chess.com"]
[Date "2024.06.18"]
[Round "7"]
[White "JackRodgers"]
[Black "farzadbfd"]
[Result "0-1"]
[WhiteElo "2558"]
[BlackElo "2704"]
[TimeControl "180+1"]
[EndTime "15:19:39 PDT"]
[Termination "farzadbfd won by resignation"]

1. d4 {[%clk 0:03:00.9]} 1... Nf6 {[%clk 0:02:59.8]} 2. Bg5 {[%clk 0:03:00.4]}
2... d5 {[%clk 0:02:59.6]} 3. Bxf6 {[%clk 0:02:59.5]} 3... gxf6 {[%clk
0:03:00.5]} 4. e3 {[%clk 0:02:59.2]} 4... c5 {[%clk 0:03:01.1]} 5. dxc5 {[%clk
0:02:58.5]} 5... e6 {[%clk 0:03:01]} 6. c4 {[%clk 0:02:58.1]} 6... dxc4 {[%clk
0:02:54.1]} 7. Nc3 {[%clk 0:02:57.9]} 7... Qxd1+ {[%clk 0:02:52]} 8. Rxd1 {[%clk
0:02:57.7]} 8... Bxc5 {[%clk 0:02:51.2]} 9. Nf3 {[%clk 0:02:55.2]} 9... a6
{[%clk 0:02:45.6]} 10. Bxc4 {[%clk 0:02:54.1]} 10... b5 {[%clk 0:02:45.9]} 11.
Bd3 {[%clk 0:02:44.8]} 11... Bb7 {[%clk 0:02:44.1]} 12. Ne4 {[%clk 0:02:36.3]}
12... Be7 {[%clk 0:02:35.1]} 13. Bc2 {[%clk 0:02:29.3]} 13... f5 {[%clk
0:02:19.3]} 14. Nd6+ {[%clk 0:02:28.1]} 14... Bxd6 {[%clk 0:02:19.5]} 15. Rxd6
{[%clk 0:02:29]} 15... Ke7 {[%clk 0:02:19.9]} 16. Rd2 {[%clk 0:02:12]} 16... Rg8
{[%clk 0:02:20]} 17. Kf1 {[%clk 0:01:48]} 17... Nd7 {[%clk 0:02:11.5]} 18. h4
{[%clk 0:01:32.6]} 18... Rac8 {[%clk 0:02:09.9]} 19. Rh2 {[%clk 0:01:14.8]}
19... Bd5 {[%clk 0:01:47.9]} 20. a3 {[%clk 0:01:12.3]} 20... Nf6 {[%clk
0:01:45.7]} 21. Ne5 {[%clk 0:01:01.8]} 21... Rc5 {[%clk 0:01:40.3]} 22. b4
{[%clk 0:00:56.9]} 22... Bxg2+ {[%clk 0:01:13.7]} 23. Rxg2 {[%clk 0:00:53.3]}
23... Rxe5 {[%clk 0:01:14.2]} 24. Rxg8 {[%clk 0:00:47.1]} 24... Nxg8 {[%clk
0:01:15.1]} 25. a4 {[%clk 0:00:38.1]} 25... Nf6 {[%clk 0:01:07.7]} 26. axb5
{[%clk 0:00:32.8]} 26... axb5 {[%clk 0:01:08.6]} 27. Rd4 {[%clk 0:00:32.2]}
27... Rd5 {[%clk 0:01:06.4]} 28. Bd3 {[%clk 0:00:30.2]} 28... Rxd4 {[%clk
0:01:05.7]} 29. exd4 {[%clk 0:00:31.1]} 29... Nd5 {[%clk 0:01:06.2]} 30. Bxb5
{[%clk 0:00:31.5]} 30... Nxb4 {[%clk 0:01:06.6]} 31. Ke2 {[%clk 0:00:28.3]}
31... Kd6 {[%clk 0:01:05.7]} 32. Be8 {[%clk 0:00:26.1]} 32... f6 {[%clk
0:01:05.4]} 33. h5 {[%clk 0:00:19.2]} 33... h6 {[%clk 0:01:04.9]} 34. Bf7 {[%clk
0:00:11.7]} 34... Kd5 {[%clk 0:01:02.6]} 35. Ke3 {[%clk 0:00:10.4]} 35... Nc2+
{[%clk 0:01:02.7]} 36. Kd3 {[%clk 0:00:08.7]} 36... Nxd4 {[%clk 0:01:03.3]} 37.
Bg8 {[%clk 0:00:05.8]} 37... Nc6 {[%clk 0:01:01.5]} 38. f4 {[%clk 0:00:05.4]}
38... Nd4 {[%clk 0:00:41]} 39. Ke3 {[%clk 0:00:04.3]} 39... Kc5 {[%clk
0:00:36.7]} 40. Bf7 {[%clk 0:00:04.9]} 40... e5 {[%clk 0:00:36.4]} 41. Bg8
{[%clk 0:00:04.2]} 41... Nc2+ {[%clk 0:00:34.8]} 42. Kd3 {[%clk 0:00:03.7]}
42... Nb4+ {[%clk 0:00:33.8]} 43. Ke3 {[%clk 0:00:02.9]} 43... Nd5+ {[%clk
0:00:34.3]} 44. Kf3 {[%clk 0:00:03.6]} 44... Nxf4 {[%clk 0:00:34.2]} 45. Bf7
{[%clk 0:00:04.5]} 45... Kd6 {[%clk 0:00:31.6]} 46. Bg6 {[%clk 0:00:04.8]} 46...
Nxg6 {[%clk 0:00:31.8]} 47. hxg6 {[%clk 0:00:05.7]} 47... Ke7 {[%clk 0:00:32.3]}
0-1

[Event "Late-Titled-Tuesday-Blitz-June-18-2024"]
[Site "Chess.com"]
[Date "2024.06.18"]
[Round "7"]
[White "urano56"]
[Black "dolynachess"]
[Result "1-0"]
[WhiteElo "2414"]
[BlackElo "2546"]
[TimeControl "180+1"]
[EndTime "15:19:40 PDT"]
[Termination "urano56 won on time"]

1. d4 {[%clk 0:03:00.9]} 1... Nf6 {[%clk 0:02:56.8]} 2. c4 {[%clk 0:02:58.5]}
2... c5 {[%clk 0:02:56.5]} 3. d5 {[%clk 0:02:57.6]} 3... b5 {[%clk 0:02:57.1]}
4. cxb5 {[%clk 0:02:57.4]} 4... a6 {[%clk 0:02:57.1]} 5. e3 {[%clk 0:02:56.3]}
5... g6 {[%clk 0:02:56.6]} 6. Nc3 {[%clk 0:02:56.1]} 6... Bg7 {[%clk 0:02:57.1]}
7. a4 {[%clk 0:02:52.5]} 7... O-O {[%clk 0:02:57.2]} 8. Nf3 {[%clk 0:02:50.3]}
8... Bb7 {[%clk 0:02:56.8]} 9. Bc4 {[%clk 0:02:49.7]} 9... e6 {[%clk 0:02:57]}
10. dxe6 {[%clk 0:02:49.5]} 10... fxe6 {[%clk 0:02:55.2]} 11. O-O {[%clk
0:02:49.2]} 11... d5 {[%clk 0:02:55]} 12. Be2 {[%clk 0:02:41.8]} 12... axb5
{[%clk 0:02:49.6]} 13. Bxb5 {[%clk 0:02:40.4]} 13... Nbd7 {[%clk 0:02:48.4]} 14.
Ra3 {[%clk 0:02:25.5]} 14... Qc7 {[%clk 0:02:20.6]} 15. Ng5 {[%clk 0:02:22.2]}
15... Rae8 {[%clk 0:02:13.9]} 16. a5 {[%clk 0:02:11.1]} 16... e5 {[%clk
0:02:07]} 17. a6 {[%clk 0:02:09.3]} 17... Ba8 {[%clk 0:02:06.7]} 18. e4 {[%clk
0:01:53.5]} 18... h6 {[%clk 0:01:57]} 19. exd5 {[%clk 0:01:35.1]} 19... hxg5
{[%clk 0:01:56.5]} 20. d6 {[%clk 0:01:21]} 20... Qb6 {[%clk 0:01:56.1]} 21. Bc4+
{[%clk 0:01:20.7]} 21... Kh7 {[%clk 0:01:51.2]} 22. Na4 {[%clk 0:01:20.9]} 22...
Qc6 {[%clk 0:01:47.4]} 23. Rh3+ {[%clk 0:01:02.1]} 23... Nh5 {[%clk 0:01:33.8]}
24. Rxh5+ {[%clk 0:00:58.5]} 24... gxh5 {[%clk 0:01:33.9]} 25. Qxh5+ {[%clk
0:00:58.1]} 25... Bh6 {[%clk 0:01:31.7]} 26. f3 {[%clk 0:00:48.5]} 26... Nf6
{[%clk 0:01:15]} 27. Qh3 {[%clk 0:00:43.5]} 27... Qxa4 {[%clk 0:00:55.8]} 28.
Bxg5 {[%clk 0:00:34.5]} 28... Qxc4 {[%clk 0:00:44.7]} 29. Qxh6+ {[%clk
0:00:34.2]} 29... Kg8 {[%clk 0:00:43.2]} 30. Bxf6 {[%clk 0:00:31.4]} 30... Qd4+
{[%clk 0:00:20.6]} 31. Kh1 {[%clk 0:00:30.7]} 31... Kf7 {[%clk 0:00:21.5]} 32.
Bg7 {[%clk 0:00:24.3]} 32... Re6 {[%clk 0:00:13.8]} 33. Qh7 {[%clk 0:00:22.6]}
33... Ke8 {[%clk 0:00:11.7]} 34. Bxf8 {[%clk 0:00:16.1]} 34... Kxf8 {[%clk
0:00:12.6]} 35. Qh8+ {[%clk 0:00:16.6]} 35... Kf7 {[%clk 0:00:12.9]} 36. Qxa8
{[%clk 0:00:16.5]} 36... Rxd6 {[%clk 0:00:12.8]} 37. Qb7+ {[%clk 0:00:16.6]}
37... Ke6 {[%clk 0:00:12]} 38. a7 {[%clk 0:00:16.7]} 38... Qc4 {[%clk
0:00:11.3]} 39. Rg1 {[%clk 0:00:13.3]} 1-0

[Event "Late-Titled-Tuesday-Blitz-June-18-2024"]
[Site "Chess.com"]
[Date "2024.06.18"]
[Round "7"]
[White "ChessAdvanceUSA"]
[Black "VirtualCoach"]
[Result "0-1"]
[WhiteElo "2465"]
[BlackElo "2357"]
[TimeControl "180+1"]
[EndTime "15:19:41 PDT"]
[Termination "VirtualCoach won by resignation"]

1. Nc3 {[%clk 0:03:00.9]} 1... Nf6 {[%clk 0:02:59]} 2. d4 {[%clk 0:02:59.9]}
2... d5 {[%clk 0:02:58.7]} 3. e4 {[%clk 0:02:59.6]} 3... Nxe4 {[%clk 0:02:56.4]}
4. Nxe4 {[%clk 0:02:59.5]} 4... dxe4 {[%clk 0:02:56.7]} 5. f3 {[%clk 0:03:00.1]}
5... exf3 {[%clk 0:02:54.2]} 6. Nxf3 {[%clk 0:03:01]} 6... g6 {[%clk 0:02:52.4]}
7. Bc4 {[%clk 0:02:58]} 7... Bg7 {[%clk 0:02:51.9]} 8. O-O {[%clk 0:02:53.9]}
8... O-O {[%clk 0:02:51.3]} 9. Ne5 {[%clk 0:02:42.2]} 9... e6 {[%clk 0:02:50.8]}
10. c3 {[%clk 0:02:34]} 10... c5 {[%clk 0:02:50.6]} 11. Be3 {[%clk 0:02:15.7]}
11... a6 {[%clk 0:02:44.6]} 12. Qf3 {[%clk 0:02:05.6]} 12... Qe7 {[%clk
0:02:29.9]} 13. Rae1 {[%clk 0:01:57.8]} 13... Ra7 {[%clk 0:02:21.4]} 14. Ng4
{[%clk 0:01:47.1]} 14... b5 {[%clk 0:02:19.4]} 15. Bd3 {[%clk 0:01:38.2]} 15...
Bb7 {[%clk 0:02:18.1]} 16. Qh3 {[%clk 0:01:31.3]} 16... c4 {[%clk 0:02:16.4]}
17. Bc2 {[%clk 0:01:28.1]} 17... Bd5 {[%clk 0:02:14.8]} 18. Bh6 {[%clk
0:01:24.4]} 18... f5 {[%clk 0:02:08.2]} 19. Ne5 {[%clk 0:01:12.5]} 19... Nd7
{[%clk 0:02:05.7]} 20. Bxg7 {[%clk 0:01:04.6]} 20... Qxg7 {[%clk 0:02:05.5]} 21.
Nxd7 {[%clk 0:01:00.3]} 21... Rxd7 {[%clk 0:02:04.8]} 22. Re5 {[%clk 0:01:00.6]}
22... Rdf7 {[%clk 0:01:58.8]} 23. Bd1 {[%clk 0:00:54.4]} 23... g5 {[%clk
0:01:55]} 24. Qh5 {[%clk 0:00:52.3]} 24... Rf6 {[%clk 0:01:51.5]} 25. Qe2 {[%clk
0:00:42.6]} 25... Rh6 {[%clk 0:01:47.9]} 26. Qf2 {[%clk 0:00:41.5]} 26... Rh4
{[%clk 0:01:43.6]} 27. Bf3 {[%clk 0:00:39.8]} 27... Rf4 {[%clk 0:01:19.6]} 28.
Qe3 {[%clk 0:00:35.1]} 28... Bxf3 {[%clk 0:01:17.6]} 29. Rxf3 {[%clk 0:00:34.6]}
29... Rxf3 {[%clk 0:01:17]} 30. Qxf3 {[%clk 0:00:35.1]} 30... Re8 {[%clk
0:01:17.2]} 31. Qe3 {[%clk 0:00:31.1]} 31... Qf6 {[%clk 0:01:15.2]} 32. d5
{[%clk 0:00:30.2]} 32... Kf7 {[%clk 0:01:13.6]} 33. d6 {[%clk 0:00:25.6]} 33...
Qd8 {[%clk 0:01:09.9]} 34. Qa7+ {[%clk 0:00:25.5]} 34... Kf6 {[%clk 0:01:07.8]}
35. Qd4 {[%clk 0:00:24.3]} 35... Kg6 {[%clk 0:01:05.7]} 36. d7 {[%clk
0:00:20.5]} 36... Re7 {[%clk 0:01:04.9]} 37. Qd6 {[%clk 0:00:20.6]} 37... Kf6
{[%clk 0:00:58.7]} 38. h4 {[%clk 0:00:16.8]} 38... gxh4 {[%clk 0:00:51.5]} 39.
Qd4 {[%clk 0:00:16.9]} 39... Kf7 {[%clk 0:00:49.3]} 40. Qxh4 {[%clk 0:00:16]}
40... Rxd7 {[%clk 0:00:43.5]} 41. Qxh7+ {[%clk 0:00:15.5]} 41... Kf6 {[%clk
0:00:42.3]} 42. Qh6+ {[%clk 0:00:07]} 42... Kxe5 {[%clk 0:00:42.1]} 43. Qe3+
{[%clk 0:00:07.1]} 43... Kd6 {[%clk 0:00:42.3]} 44. Qd4+ {[%clk 0:00:06.5]}
44... Kc7 {[%clk 0:00:40.8]} 45. Qa7+ {[%clk 0:00:06.6]} 45... Kd6 {[%clk
0:00:37.5]} 46. Qxa6+ {[%clk 0:00:05.4]} 46... Ke7 {[%clk 0:00:37.2]} 47. Qa3+
{[%clk 0:00:06]} 47... Rd6 {[%clk 0:00:36.6]} 48. Qa7+ {[%clk 0:00:06]} 48...
Qd7 {[%clk 0:00:37]} 49. Qe3 {[%clk 0:00:06.2]} 49... Rd1+ {[%clk 0:00:37]} 50.
Kh2 {[%clk 0:00:06.6]} 50... Qd6+ {[%clk 0:00:37]} 51. g3 {[%clk 0:00:06.3]} 0-1